bitfinex-derivatives/quotes_BTCF0:USTF0_20250106
["timestamp","ask_amount","ask_price","bid_price","bid_amount"]
[1736140616338,0.1002,99625.0,99624.0,0.046185]
[1736140616637,0.1042,99625.0,99624.0,0.046185]
[1736140617835,0.1002,99625.0,99624.0,0.046185]
[1736140618036,0.1012,99625.0,99624.0,0.046185]
[1736140618442,0.1022,99625.0,99624.0,0.046185]
[1736140618638,0.1022,99625.0,99624.0,1.546185]
[1736140621140,0.01,99625.0,99624.0,1.546185]
[1736140621842,0.01,99625.0,99624.0,0.046185]
[1736140622141,0.16049144,99636.0,99624.0,0.001]
[1736140622337,0.045181,99634.0,99630.0,0.405982]
[1736140624935,0.16508586,99634.0,99630.0,0.405982]
[1736140625136,0.11990486,99634.0,99632.0,0.045181]
[1736140626734,0.04058658,99636.0,99635.0,0.04518]
[1736140627840,0.04158658,99636.0,99635.0,0.04518]
[1736140630845,0.045182,99632.0,99630.0,0.3608]
[1736140631141,0.0446,99631.0,99630.0,0.3608]
[1736140631550,0.0446,99631.0,99630.0,0.405982]
[1736140632452,0.0446,99631.0,99630.0,0.406982]
[1736140633748,0.11990486,99632.0,99630.0,0.406982]
[1736140634048,0.16508686,99632.0,99630.0,0.406982]
[1736140634947,0.11990486,99632.0,99623.0,0.17855932]
[1736140635151,0.045185,99625.0,99623.0,0.17855932]
[1736140635348,0.11990486,99631.0,99621.0,0.3608]
[1736140635557,0.045186,99622.0,99620.0,0.17855932]
[1736140635848,0.045186,99622.0,99620.0,0.10725932]
[1736140636642,0.045188,99619.0,99612.0,0.04519]
[1736140636839,0.0444,99618.0,99612.0,0.04519]
[1736140637038,0.089588,99618.0,99612.0,0.04519]
[1736140637254,0.089588,99618.0,99616.0,0.045189]
[1736140638744,0.091588,99618.0,99616.0,0.045189]
[1736140641244,0.047188,99618.0,99616.0,0.045189]
[1736140641451,0.002,99618.0,99617.0,0.3608]
[1736140641647,0.002,99618.0,99617.0,1.8608]
[1736140642750,0.002,99618.0,99617.0,1.5]
[1736140642946,0.1222647,99618.0,99617.0,1.5]
[1736140643654,0.1222647,99618.0,99616.0,0.045189]
[1736140645654,0.1202647,99617.0,99616.0,0.045189]
[1736140646955,0.1212647,99617.0,99616.0,0.045189]
[1736140647154,0.1222647,99617.0,99616.0,0.045189]
[1736140647350,0.045191,99612.0,99588.0,0.71791865]
[1736140647551,0.045196,99599.0,99598.0,0.2380791]
[1736140648752,0.045196,99599.0,99598.0,0.2450791]
[1736140649660,0.045196,99599.0,99598.0,0.007]
[1736140650252,0.045196,99599.0,99598.0,0.009]
[1736140651358,0.16534805,99599.0,99598.0,0.009]
[1736140652760,0.045196,99599.0,99598.0,0.009]
[1736140654748,0.05545917,99599.0,99598.0,0.009]
[1736140661365,0.09672489,99600.0,99598.0,0.009]
[1736140661562,0.10704358,99600.0,99598.0,0.009]
[1736140662168,0.045196,99599.0,99598.0,0.009]
[1736140663167,0.045196,99599.0,99598.0,0.007]
[1736140663356,0.045196,99599.0,99598.0,0.009]
[1736140675477,0.15027785,99600.0,99598.0,0.054197]
[1736140675683,0.15027785,99600.0,99599.0,0.0461]
[1736140675875,0.045193,99608.0,99599.0,0.1333]
[1736140676078,0.045193,99608.0,99605.0,0.045194]
[1736140676480,0.045193,99608.0,99606.0,0.045193]
[1736140677578,0.15052587,99607.0,99606.0,0.045193]
[1736140678381,0.15052587,99607.0,99606.0,0.048193]
[1736140678680,0.04883789,99607.0,99606.0,0.048193]
[1736140679294,0.04883789,99607.0,99606.0,0.049193]
[1736140680184,0.045193,99608.0,99606.0,0.049193]
[1736140680386,0.3608,99607.0,99606.0,0.004]
[1736140680692,0.045193,99608.0,99606.0,0.004]
[1736140681985,0.09403089,99607.0,99606.0,0.001]
[1736140682179,0.09403089,99607.0,99606.0,0.004]
[1736140682884,0.045193,99607.0,99606.0,0.004]
[1736140683188,0.19572224,99607.0,99606.0,0.004]
[1736140685192,0.045193,99607.0,99606.0,0.004]
[1736140687091,0.0579735,99607.0,99606.0,0.004]
[1736140693995,0.13172089,99608.0,99606.0,0.004]
[1736140694694,0.17691289,99608.0,99607.0,1.5]
[1736140695601,0.0940312,99608.0,99607.0,1.5]
[1736140696103,0.0940312,99608.0,99607.0,0.001]
[1736140696504,0.10679992,99608.0,99607.0,0.001]
[1736140697005,0.05796072,99608.0,99607.0,0.001]
[1736140697201,0.05796072,99608.0,99607.0,0.004]
[1736140698199,0.10679992,99608.0,99607.0,0.004]
[1736140698794,0.46759992,99608.0,99607.0,0.004]
[1736140699000,0.46759992,99608.0,99600.0,0.00052]
[1736140699201,0.46759992,99608.0,99589.0,0.2392855]
[1736140699403,0.045199,99593.0,99590.0,1.5]
[1736140699708,0.0452,99593.0,99590.0,1.5]
[1736140700711,0.0452,99593.0,99590.0,1.509]
[1736140702207,0.0452,99593.0,99590.0,1.513]
[1736140702406,0.0452,99591.0,99590.0,1.513]
[1736140703704,0.0452,99591.0,99590.0,0.013]
[1736140703903,0.0462,99591.0,99590.0,0.009]
[1736140704111,0.0462,99591.0,99590.0,0.013]
[1736140708113,0.05901011,99591.0,99590.0,0.013]
[1736140719108,0.05801011,99591.0,99590.0,0.004]
[1736140720114,0.10685937,99591.0,99590.0,0.004]
[1736140720518,0.045204,99583.0,99581.0,0.3608]
[1736140721618,0.045204,99583.0,99581.0,0.3648]
[1736140721819,0.045204,99583.0,99581.0,0.3658]
[1736140723124,0.12037624,99582.0,99581.0,0.3658]
[1736140724130,0.12037624,99582.0,99581.0,0.005]
[1736140724824,0.04363227,99582.0,99581.0,0.005]
[1736140728421,0.045204,99583.0,99581.0,0.005]
[1736140730237,0.045204,99583.0,99581.0,0.004]
[1736140730429,0.045204,99583.0,99581.0,0.005]
[1736140748440,0.0444,99582.0,99581.0,0.005]
[1736140749233,0.0444,99582.0,99581.0,1.505]
[1736140750544,0.09325446,99582.0,99581.0,1.505]
[1736140752543,0.45405446,99582.0,99581.0,1.505]
[1736140752748,0.37769414,99582.0,99581.0,1.505]
[1736140755643,0.045211,99568.0,99567.0,0.2392855]
[1736140755843,0.406011,99568.0,99567.0,0.2392855]
[1736140756050,0.42583276,99568.0,99567.0,0.2392855]
[1736140756240,0.406011,99568.0,99567.0,0.2392855]
[1736140756942,0.42579801,99568.0,99567.0,0.2392855]
[1736140757150,0.406011,99568.0,99567.0,0.2392855]
[1736140757450,0.407011,99568.0,99567.0,0.009]
[1736140757949,0.045213,99562.0,99561.0,0.00150649]
[1736140759152,0.046213,99562.0,99561.0,0.01050649]
[1736140759649,0.046213,99562.0,99561.0,0.01450649]
[1736140760739,0.046213,99562.0,99561.0,0.00550649]
[1736140760740,0.045213,99562.0,99561.0,0.00550649]
[1736140760942,0.046213,99562.0,99561.0,0.01250649]
[1736140761255,0.046213,99562.0,99561.0,0.00850649]
[1736140761453,0.047213,99562.0,99561.0,0.00150649]
[1736140762150,0.048213,99562.0,99561.0,0.00150649]
[1736140766052,0.048213,99562.0,99561.0,1.50150649]
[1736140766855,0.003,99562.0,99547.0,0.0438]
[1736140767154,0.04522,99548.0,99547.0,0.0438]
[1736140768254,0.04522,99548.0,99547.0,0.0478]
[1736140768651,0.04522,99548.0,99547.0,0.0488]
[1736140776152,0.065193,99548.0,99547.0,0.0488]
[1736140778762,0.15528356,99548.0,99547.0,0.0488]
[1736140779955,0.065193,99548.0,99547.0,0.0488]
[1736140782758,0.065193,99548.0,99547.0,0.005]
[1736140784868,0.13761251,99552.0,99547.0,0.005]
[1736140785066,0.04522,99548.0,99547.0,0.005]
[1736140786162,0.04522,99548.0,99547.0,0.004]
[1736140786361,0.04522,99548.0,99547.0,0.005]
[1736140787363,0.09408815,99548.0,99547.0,0.005]
[1736140794275,0.45488815,99548.0,99547.0,0.005]
[1736140797181,0.04886815,99548.0,99547.0,0.005]
[1736140797373,0.04886815,99548.0,99547.0,0.3658]
[1736140798581,0.12056431,99550.0,99548.0,0.04522]
[1736140799779,0.12056431,99549.0,99548.0,0.04522]
[1736140799980,0.12056431,99549.0,99548.0,0.04922]
[1736140801181,0.045217,99555.0,99548.0,0.24359741]
[1736140801375,0.045217,99553.0,99550.0,0.045218]
[1736140801682,0.045217,99553.0,99551.0,0.045218]
[1736140801881,0.045217,99553.0,99552.0,0.0363]
[1736140802386,0.10877055,99560.0,99552.0,0.0363]
[1736140802683,0.10877055,99560.0,99553.0,0.0392]
[1736140802883,0.045215,99559.0,99555.0,0.045216]
[1736140804275,0.045215,99559.0,99557.0,0.17963742]
[1736140804688,0.00124001,99565.0,99563.0,0.045213]
[1736140804987,0.00124001,99565.0,99557.0,0.54043742]
[1736140804988,0.02265997,99571.0,99566.0,0.045211]
[1736140805188,0.02265997,99571.0,99567.0,1.5757]
[1736140806380,0.00250702,99568.0,99567.0,1.5757]
[1736140807986,0.12291272,99568.0,99567.0,1.5757]
[1736140808776,0.12391272,99568.0,99567.0,1.5757]
[1736140809393,0.00350702,99568.0,99567.0,1.9365]
[1736140809691,0.002,99568.0,99567.0,1.9365]
[1736140813589,0.01448399,99573.0,99567.0,1.9365]
[1736140813789,0.01448399,99573.0,99567.0,1.981711]
[1736140813991,0.01448399,99573.0,99570.0,0.3608]
[1736140814183,0.14213935,99579.0,99571.0,0.045209]
[1736140814595,0.045209,99572.0,99570.0,0.3608]
[1736140814890,0.0369,99571.0,99560.0,0.42435655]
[1736140815185,0.08301,99570.0,99560.0,0.42435655]
[1736140815394,0.08301,99570.0,99560.0,0.4879131]
[1736140815587,0.1214057,99573.0,99569.0,0.3608]
[1736140815785,0.1214057,99573.0,99572.0,0.045209]
[1736140815986,0.1244057,99573.0,99572.0,0.045209]
[1736140816193,0.1234057,99573.0,99572.0,1.545209]
[1736140816782,0.1204057,99573.0,99572.0,1.545209]
[1736140817788,0.02200219,99583.0,99575.0,0.045207]
[1736140817987,0.045203,99584.0,99577.0,0.3608]
[1736140819395,0.048203,99584.0,99577.0,0.3608]
[1736140819695,0.001,99583.0,99577.0,0.3608]
[1736140819890,0.001,99583.0,99577.0,0.406006]
[1736140820590,0.001,99583.0,99578.0,0.045206]
[1736140820792,0.001,99583.0,99577.0,0.3608]
[1736140820997,0.001,99583.0,99581.0,0.045204]
[1736140821489,0.02727583,99584.0,99581.0,0.045204]
[1736140821885,0.02427583,99584.0,99581.0,0.045204]
[1736140822089,0.003,99583.0,99581.0,0.045204]
[1736140822289,0.004,99583.0,99581.0,0.045204]
[1736140822596,0.001,99583.0,99581.0,0.045204]
[1736140823000,0.02527583,99584.0,99581.0,0.045204]
[1736140823190,0.003,99583.0,99581.0,0.045204]
[1736140825198,0.001,99583.0,99581.0,0.045204]
[1736140825393,0.001,99583.0,99581.0,0.047204]
[1736140825903,0.02227583,99584.0,99581.0,0.049204]
[1736140826197,0.045203,99585.0,99581.0,0.005]
[1736140826491,0.045203,99585.0,99583.0,0.045204]
[1736140829395,0.045203,99585.0,99583.0,0.048204]
[1736140829596,0.06791506,99585.0,99583.0,0.049204]
[1736140830597,0.02271206,99585.0,99583.0,0.049204]
[1736140830795,0.18396225,99591.0,99583.0,0.049204]
[1736140831990,0.045202,99588.0,99583.0,0.049204]
[1736140832198,0.045202,99588.0,99583.0,0.046204]
[1736140833289,0.045202,99588.0,99583.0,0.045204]
[1736140833490,0.045202,99588.0,99577.0,0.3608]
[1736140833697,0.045202,99588.0,99586.0,0.045202]
[1736140839699,0.02262338,99591.0,99588.0,0.045201]
[1736140840007,0.02262338,99591.0,99590.0,0.045201]
[1736140840008,0.1502122,99591.0,99590.0,0.045201]
[1736140840603,0.1502122,99591.0,99590.0,1.545201]
[1736140841708,0.0452,99592.0,99590.0,1.545201]
[1736140842106,0.02801462,99593.0,99590.0,1.545201]
[1736140843007,0.0452,99592.0,99590.0,1.545201]
[1736140844214,0.0462,99592.0,99590.0,1.545201]
[1736140845011,0.0452,99592.0,99590.0,1.545201]
[1736140846913,0.0452,99592.0,99590.0,0.045201]
[1736140847109,0.0452,99592.0,99590.0,0.046201]
[1736140847908,0.04884758,99591.0,99590.0,0.046201]
[1736140849511,0.05184758,99591.0,99590.0,0.045201]
[1736140850013,0.04884758,99591.0,99590.0,0.045201]
[1736140850515,0.05884758,99591.0,99574.0,0.29910688]
[1736140850709,0.05884758,99591.0,99548.0,0.3608]
[1736140850710,0.045217,99553.0,99542.0,0.045222]
[1736140850906,0.06355655,99552.0,99540.0,0.41874963]
[1736140851107,0.045221,99546.0,99540.0,0.41874963]
[1736140851614,0.06355655,99552.0,99540.0,0.41874963]
[1736140851813,0.12059657,99542.0,99541.0,0.045223]
[1736140852116,0.15074572,99547.0,99546.0,0.045221]
[1736140852913,0.02166002,99561.0,99541.0,1.545223]
[1736140852914,0.15074572,99558.0,99557.0,0.045216]
[1736140853403,0.15074572,99558.0,99557.0,1.545216]
[1736140854209,0.15074572,99561.0,99557.0,1.5]
[1736140854417,0.15074572,99561.0,99560.0,0.045214]
[1736140855809,0.15074572,99570.0,99564.0,0.045212]
[1736140857018,0.19595572,99570.0,99567.0,0.3608]
[1736140857217,0.15074572,99569.0,99567.0,0.3608]
[1736140862018,0.15074572,99569.0,99567.0,0.406011]
[1736140862821,0.15074572,99570.0,99569.0,0.04521]
[1736140864512,0.045207,99577.0,99569.0,1.5]
[1736140864720,0.045207,99577.0,99571.0,0.045209]
[1736140864919,0.045207,99577.0,99572.0,0.0385]
[1736140865117,0.15074572,99583.0,99576.0,0.3608]
[1736140865511,0.15074572,99583.0,99577.0,0.0394]
[1736140865922,0.15074572,99582.0,99577.0,0.0394]
[1736140866925,0.045205,99580.0,99577.0,0.0394]
[1736140870129,0.045205,99580.0,99577.0,0.084606]
[1736140870521,0.045205,99580.0,99578.0,0.045206]
[1736140871319,0.0181716,99587.0,99579.0,0.045205]
[1736140871516,0.045202,99586.0,99579.0,0.045205]
[1736140872921,0.1685272,99588.0,99579.0,0.045205]
[1736140872922,0.12223785,99588.0,99579.0,0.045205]
[1736140873228,0.01778148,99588.0,99579.0,0.045205]
[1736140873417,0.24414634,99600.0,99579.0,0.045205]
[1736140873620,0.001,99587.0,99579.0,0.045205]
[1736140874230,0.045201,99589.0,99579.0,0.045205]
[1736140874431,0.001,99588.0,99579.0,0.045205]
[1736140875226,0.001,99587.0,99579.0,0.045205]
[1736140875824,0.001,99587.0,99582.0,0.045204]
[1736140876825,0.045201,99589.0,99582.0,0.045204]
[1736140877022,0.001,99588.0,99582.0,0.045204]
[1736140877227,0.002,99587.0,99582.0,0.045204]
[1736140877734,0.003,99587.0,99582.0,0.045204]
[1736140878529,0.003,99587.0,99585.0,0.3608]
[1736140879434,0.001,99587.0,99585.0,0.3608]
[1736140880029,0.005,99587.0,99585.0,0.3608]
[1736140880821,0.005,99587.0,99585.0,0.406003]
[1736140881029,0.18058979,99594.0,99593.0,0.045199]
[1736140881235,0.01775733,99616.0,99606.0,0.045193]
[1736140881434,0.01775733,99616.0,99606.0,1.905993]
[1736140881632,0.0378,99618.0,99606.0,1.905993]
[1736140881825,0.0378,99618.0,99617.0,0.045188]
[1736140882433,0.0378,99618.0,99617.0,0.405988]
[1736140883328,0.0428,99618.0,99617.0,0.406988]
[1736140883531,0.09163255,99618.0,99617.0,0.406988]
[1736140884230,0.05383255,99618.0,99617.0,0.406988]
[1736140884430,0.05383255,99618.0,99617.0,1.906988]
[1736140885138,0.3608,99640.0,99633.0,0.045181]
[1736140885330,0.01791164,99639.0,99635.0,0.04518]
[1736140885531,0.3608,99640.0,99635.0,0.04518]
[1736140886331,0.3608,99640.0,99637.0,0.045179]
[1736140886539,0.045176,99646.0,99630.0,0.06355655]
[1736140886747,0.005,99640.0,99636.0,0.06355655]
[1736140887038,0.008,99640.0,99639.0,0.3608]
[1736140887625,0.005,99640.0,99639.0,1.8608]
[1736140887835,0.003,99640.0,99639.0,1.8608]
[1736140889546,0.06478312,99646.0,99639.0,1.8608]
[1736140889934,0.001,99640.0,99639.0,1.5]
[1736140890138,0.045184,99627.0,99620.0,0.3608]
[1736140890342,0.0395,99626.0,99620.0,0.3608]
[1736140890536,0.0395,99626.0,99621.0,1.5]
[1736140893743,0.05700816,99626.0,99621.0,1.5]
[1736140899044,0.05700816,99626.0,99610.0,0.09678315]
[1736140899045,0.045189,99616.0,99610.0,0.045191]
[1736140899238,0.045189,99616.0,99609.0,0.3608]
[1736140899945,0.045189,99616.0,99607.0,0.045192]
[1736140900144,0.045189,99616.0,99608.0,0.045192]
[1736140900347,0.045189,99616.0,99609.0,0.3608]
[1736140900548,0.045189,99616.0,99610.0,0.045191]
[1736140901751,0.3139075,99624.0,99610.0,0.045191]
[1736140901952,0.045189,99616.0,99610.0,0.045191]
[1736140902446,0.045189,99616.0,99611.0,0.045191]
[1736140905048,0.045189,99616.0,99611.0,0.046191]
[1736140906151,0.045189,99615.0,99611.0,0.001]
[1736140907348,0.045191,99612.0,99611.0,0.001]
[1736140908252,0.14994193,99618.0,99609.0,0.3608]
[1736140908444,0.14994193,99618.0,99611.0,0.001]
[1736140908445,0.045191,99612.0,99611.0,0.001]
[1736140908847,0.14994193,99618.0,99609.0,0.3608]
[1736140909045,0.045192,99610.0,99609.0,0.3608]
[1736140911155,0.19513393,99610.0,99609.0,0.3608]
[1736140911844,0.19613393,99610.0,99609.0,0.3608]
[1736140912451,0.09502832,99610.0,99609.0,0.3608]
[1736140913057,0.04983632,99610.0,99609.0,0.405992]
[1736140913758,0.001,99610.0,99609.0,0.405992]
[1736140914757,0.15033224,99612.0,99609.0,0.405992]
[1736140915144,0.15033224,99614.0,99609.0,0.405992]
[1736140915560,0.15033224,99614.0,99609.0,0.407992]
[1736140915854,0.16817546,99614.0,99609.0,0.407992]
[1736140916461,0.21336546,99614.0,99609.0,0.407992]
[1736140917551,0.16817546,99614.0,99609.0,0.3628]
[1736140917867,0.01784322,99614.0,99609.0,0.3628]
[1736140918154,0.15033224,99615.0,99609.0,0.3628]
[1736140918459,0.045191,99610.0,99609.0,0.3628]
[1736140918657,0.045191,99610.0,99609.0,0.3618]
[1736140919960,0.046191,99610.0,99609.0,0.3628]
[1736140921561,0.046191,99610.0,99609.0,0.3608]
[1736140922161,0.045191,99610.0,99609.0,0.3618]
[1736140924661,0.045191,99610.0,99609.0,0.3608]
[1736140924958,0.045191,99610.0,99609.0,0.3618]
[1736140926347,0.01655737,99615.0,99609.0,0.3618]
[1736140926661,0.045189,99616.0,99609.0,0.3618]
[1736140926862,0.04519,99615.0,99609.0,0.3618]
[1736140927065,0.11166334,99620.0,99609.0,0.3618]
[1736140928058,0.04519,99613.0,99609.0,0.3618]
[1736140933264,0.04883423,99612.0,99609.0,0.3618]
[1736140935975,0.07842725,99620.0,99609.0,0.3618]
[1736140936476,0.18076971,99614.0,99609.0,0.3618]
[1736140936874,0.04519,99613.0,99609.0,0.3618]
[1736140943071,0.18076971,99616.0,99609.0,0.3618]
[1736140943271,0.18076971,99616.0,99614.0,0.04519]
[1736140944775,0.18076971,99616.0,99615.0,1.5]
[1736140945188,0.001,99616.0,99615.0,1.545189]
[1736140947488,0.18076971,99618.0,99616.0,0.045189]
[1736140947690,0.18076971,99618.0,99617.0,0.3608]
[1736140948587,0.18076971,99619.0,99617.0,0.3608]
[1736140948881,0.001,99618.0,99617.0,0.3608]
[1736140950486,0.18076971,99619.0,99617.0,0.3608]
[1736140950689,0.001,99618.0,99617.0,0.3608]
[1736140951591,0.18076971,99619.0,99618.0,0.045188]
[1736140951786,0.001,99619.0,99618.0,0.045188]
[1736140952491,0.001,99619.0,99617.0,0.3608]
[1736140952492,0.18076971,99625.0,99619.0,0.045187]
[1736140952691,0.19588596,99625.0,99620.0,0.045187]
[1736140954388,0.045185,99624.0,99620.0,0.045187]
[1736140954795,0.09401381,99624.0,99620.0,0.045187]
[1736140955889,0.09501381,99624.0,99620.0,0.045187]
[1736140956392,0.04882881,99623.0,99620.0,0.045187]
[1736140959392,0.04882881,99623.0,99617.0,0.3608]
[1736140959597,0.04882881,99623.0,99621.0,0.045186]
[1736140960393,0.1806045,99622.0,99621.0,0.045186]
[1736140961697,0.08926387,99622.0,99621.0,0.045186]
[1736140963202,0.04882881,99623.0,99621.0,0.045186]
[1736140964286,0.04982881,99623.0,99621.0,0.045186]
[1736140964884,0.001,99623.0,99621.0,0.045186]
[1736140965288,0.001,99623.0,99622.0,0.3608]
[1736140966500,0.04982881,99623.0,99622.0,0.3608]
[1736140966702,0.04882881,99623.0,99622.0,0.3618]
[1736140967998,0.04882881,99625.0,99622.0,0.3618]
[1736140968199,0.04882881,99625.0,99622.0,0.3658]
[1736140968406,0.04882881,99625.0,99624.0,0.045185]
[1736140969102,0.0345,99637.0,99636.0,0.04518]
[1736140969295,0.0345,99637.0,99636.0,0.40598]
[1736140969694,0.0345,99637.0,99636.0,1.90598]
[1736140969900,0.00150578,99638.0,99636.0,1.90598]
[1736140970594,0.001,99637.0,99636.0,1.90598]
[1736140971396,0.00250578,99638.0,99636.0,1.90598]
[1736140973309,0.001,99637.0,99636.0,1.90598]
[1736140974216,0.00250578,99638.0,99636.0,1.90598]
[1736140975612,0.405973,99652.0,99646.0,0.045175]
[1736140975802,0.04755582,99649.0,99646.0,0.045175]
[1736140976907,0.05055582,99649.0,99648.0,0.045174]
[1736140979007,0.04855582,99649.0,99648.0,0.045174]
[1736140980317,0.01615582,99649.0,99648.0,0.045174]
[1736140981217,0.001,99649.0,99648.0,0.045174]
[1736140982118,0.01400581,99670.0,99669.0,0.045165]
[1736140982324,0.03440571,99671.0,99669.0,0.405965]
[1736140982510,0.00150571,99671.0,99669.0,0.405965]
[1736140983214,0.002,99670.0,99669.0,0.405965]
[1736140984005,0.00350571,99671.0,99669.0,0.405965]
[1736140984623,0.12000745,99670.0,99669.0,0.405965]
[1736140985426,0.18001118,99685.0,99684.0,0.045158]
[1736140986007,0.01403383,99685.0,99684.0,0.045158]
[1736140986310,4.224e-05,99690.0,99679.0,0.3608]
[1736140986609,4.224e-05,99690.0,99680.0,0.12709412]
[1736140986802,4.224e-05,99690.0,99684.0,1.5]
[1736140987412,0.1107,99700.0,99689.0,0.3608]
[1736140987607,0.1107,99700.0,99696.0,0.045152]
[1736140987809,0.1107,99700.0,99698.0,0.045151]
[1736140990619,0.1107,99700.0,99698.0,0.06266348]
[1736140991306,0.045152,99697.0,99696.0,0.001]
[1736140991512,0.405952,99697.0,99696.0,0.001]
[1736140991704,0.405952,99697.0,99680.0,0.09663005]
[1736140991705,0.045159,99683.0,99680.0,0.09663005]
[1736140991915,0.045158,99684.0,99676.0,0.045161]
[1736140992120,0.3608,99697.0,99676.0,0.045161]
[1736140992325,0.3608,99697.0,99687.0,0.09663005]
[1736140992623,0.045156,99688.0,99687.0,0.09663005]
[1736140992928,0.045159,99682.0,99678.0,0.09663005]
[1736140993217,0.045155,99690.0,99679.0,0.04516]
[1736140993518,0.04862513,99695.0,99680.0,0.09663005]
[1736140993713,0.04862513,99695.0,99685.0,0.09663005]
[1736140994026,0.04862513,99695.0,99692.0,0.3608]
[1736140994415,0.04862513,99695.0,99692.0,0.405954]
[1736140994718,0.045153,99696.0,99692.0,0.405954]
[1736140994913,0.0311,99699.0,99692.0,0.3608]
[1736140995114,0.0311,99699.0,99696.0,0.045152]
[1736140995713,0.0311,99699.0,99698.0,0.045152]
[1736140996218,0.1107,99700.0,99698.0,0.045152]
[1736140997014,0.1107,99700.0,99699.0,1.5]
[1736140998415,0.1107,99700.0,99698.0,0.045152]
[1736140998814,0.1107,99700.0,99698.0,1.545152]
[1736141002321,0.1107,99700.0,99698.0,0.045152]
[1736141002519,0.0369,99699.0,99693.0,0.3608]
[1736141002720,0.045153,99694.0,99693.0,0.3608]
[1736141004222,0.045153,99694.0,99693.0,0.3628]
[1736141004423,0.045153,99694.0,99693.0,0.3638]
[1736141004821,0.045153,99694.0,99693.0,0.3618]
[1736141005219,0.045153,99694.0,99693.0,0.3608]
[1736141010623,0.0369,99699.0,99693.0,0.3608]
[1736141010624,0.0369,99699.0,99698.0,0.045152]
[1736141012837,0.1107,99700.0,99698.0,0.045152]
[1736141013737,0.1107,99700.0,99699.0,1.5]
[1736141014932,0.1107,99700.0,99699.0,1.504]
[1736141015137,0.1107,99700.0,99699.0,0.005]
[1736141015431,0.26085864,99700.0,99699.0,0.005]
[1736141016829,0.1107,99700.0,99699.0,0.005]
[1736141018332,0.15949433,99700.0,99699.0,0.005]
[1736141019733,0.27906459,99700.0,99699.0,0.005]
[1736141020331,0.31506459,99700.0,99699.0,0.005]
[1736141020840,0.19549433,99700.0,99699.0,0.005]
[1736141021641,0.21312149,99700.0,99699.0,0.005]
[1736141023144,0.23183581,99700.0,99699.0,0.005]
[1736141023351,0.35147579,99700.0,99699.0,0.005]
[1736141024245,0.35151861,99700.0,99699.0,0.005]
[1736141024436,0.33280429,99700.0,99699.0,0.002]
[1736141024641,0.33280429,99700.0,99699.0,0.003]
[1736141024846,0.47166132,99700.0,99699.0,0.003]
[1736141025035,0.47166132,99700.0,99699.0,0.005]
[1736141025241,0.47166132,99700.0,99699.0,0.004]
[1736141025439,0.47166132,99700.0,99699.0,0.005]
[1736141025640,0.34869457,99700.0,99699.0,0.005]
[1736141026242,0.20983754,99700.0,99699.0,0.005]
[1736141027949,0.19221038,99700.0,99699.0,0.050151]
[1736141028148,0.02377607,99700.0,99699.0,0.050151]
[1736141028448,0.02377607,99700.0,99699.0,1.550151]
[1736141031548,0.06892707,99700.0,99699.0,1.505]
[1736141031756,0.02377607,99700.0,99699.0,1.505]
[1736141033547,0.02377607,99700.0,99699.0,1.8658]
[1736141033548,0.17415919,99700.0,99699.0,1.8658]
[1736141034849,0.07256668,99700.0,99699.0,1.8658]
[1736141035752,0.02377607,99700.0,99699.0,1.8658]
[1736141036946,0.02377607,99700.0,99699.0,0.3658]
[1736141037447,0.07256668,99700.0,99699.0,1.8658]
[1736141039062,0.11771768,99700.0,99699.0,0.3658]
[1736141039462,0.11771768,99700.0,99699.0,0.005]
[1736141039655,0.47851768,99700.0,99699.0,0.005]
[1736141041165,0.11771768,99700.0,99699.0,0.005]
[1736141042459,0.07256668,99700.0,99699.0,0.005]
[1736141042654,0.07256668,99700.0,99699.0,1.505]
[1736141044268,0.07256668,99700.0,99699.0,0.005]
[1736141045266,0.17411276,99700.0,99699.0,0.005]
[1736141046060,0.02377607,99700.0,99699.0,0.005]
[1736141048770,0.02377607,99700.0,99699.0,1.505]
[1736141049962,0.06892707,99700.0,99699.0,0.005]
[1736141050161,0.02377607,99700.0,99699.0,0.005]
[1736141051072,0.02377607,99700.0,99699.0,1.505]
[1736141051073,0.07256913,99700.0,99699.0,1.505]
[1736141052071,0.02377607,99700.0,99699.0,1.505]
[1736141053163,0.17409701,99700.0,99699.0,1.505]
[1736141055263,0.0862698,99700.0,99699.0,1.505]
[1736141056277,0.18042072,99710.0,99704.0,0.045149]
[1736141056774,0.18042072,99710.0,99707.0,0.045147]
[1736141057578,0.22921133,99710.0,99707.0,0.045147]
[1736141058980,0.18042072,99709.0,99707.0,0.045147]
[1736141060277,0.18042072,99708.0,99707.0,0.045147]
[1736141062465,0.18042072,99708.0,99707.0,0.046147]
[1736141063167,0.22921133,99709.0,99707.0,0.046147]
[1736141064978,0.22921133,99709.0,99707.0,0.045147]
[1736141065279,0.22921133,99709.0,99702.0,0.3608]
[1736141065280,0.045143,99718.0,99715.0,0.045144]
[1736141065482,0.37546079,99717.0,99715.0,0.045144]
[1736141065774,0.37546079,99717.0,99716.0,1.5]
[1736141068773,0.37546079,99717.0,99711.0,0.045146]
[1736141069474,0.37546079,99717.0,99712.0,1.5]
[1736141069679,0.045145,99713.0,99712.0,1.5]
[1736141069989,0.37546079,99717.0,99702.0,0.3608]
[1736141069990,0.0678,99716.0,99702.0,0.3608]
[1736141070174,0.045148,99706.0,99702.0,0.3608]
[1736141070374,0.045148,99706.0,99703.0,1.5]
[1736141070974,0.045148,99706.0,99703.0,1.545149]
[1736141071982,0.045148,99706.0,99705.0,0.045148]
[1736141072677,0.01463317,99707.0,99705.0,1.545148]
[1736141072873,0.112944,99716.0,99711.0,0.045146]
[1736141073186,0.045145,99713.0,99711.0,0.045146]
[1736141073775,0.0324,99716.0,99705.0,1.5]